fUSD/lending_fUSD_20250602
["ID","MTS","AMOUNT","RATE_DAILY","PERIOD"]
[363730646,1748850659225,-4170.71,0.00019589,2]
[363730647,1748850659235,-420.0,0.00019589,2]
[363730648,1748850659245,-420.0,0.00019589,2]
[363730649,1748850659254,-420.0,0.00019589,2]
[363730650,1748850659264,-432.49,0.00019589,2]
[363730651,1748850659273,-420.0,0.00019589,2]
[363730652,1748850659282,-420.0,0.00019589,2]
[363730653,1748850659291,-1774.41,0.00019589,2]
[363730654,1748850659300,-704.46,0.00019589,2]
[363730655,1748850659310,-420.0,0.00019589,2]
[363730656,1748850659320,-420.0,0.00019589,2]
[363730657,1748850659330,-443.16,0.00019589,2]
[363730658,1748850659339,-420.0,0.00019589,2]
[363730659,1748850659350,-420.0,0.00019589,2]
[363730660,1748850659362,-420.0,0.00019589,2]
[363730661,1748850659372,-420.0,0.00019589,2]
[363730662,1748850659382,-486.89,0.00019589,2]
[363730663,1748850659391,-420.0,0.00019589,2]
[363730664,1748850659400,-3012.45,0.00019589,2]
[363730665,1748850659410,-420.0,0.00019589,2]
[363730666,1748850659420,-420.0,0.00019589,2]
[363730667,1748850659429,-420.0,0.00019589,2]
[363730668,1748850659438,-420.0,0.00019589,2]
[363730669,1748850659448,-420.0,0.00019589,2]
[363730670,1748850659457,-548.87676364,0.00019589,2]
[363730671,1748850659467,-251.55813342,0.00019589,2]
[363730672,1748850659476,-151.0,0.00019589,2]
[363730673,1748850659485,-151.0,0.00019589,2]
[363730674,1748850659496,-420.0,0.00019589,2]
[363730675,1748850659505,-437.09,0.00019589,2]
[363730676,1748850659515,-420.0,0.00019589,2]
[363730677,1748850659524,-420.0,0.00019589,2]
[363730678,1748850659534,-420.0,0.00019589,2]
[363730679,1748850659544,-420.0,0.00019589,2]
[363730680,1748850659554,-420.0,0.00019589,2]
[363730681,1748850659563,-420.0,0.00019589,2]
[363730682,1748850659573,-420.0,0.00019589,2]
[363730683,1748850659583,-500.0,0.00019589,2]
[363730684,1748850659593,-1753.973229,0.00019597,2]
[363730685,1748850659602,-151.0,0.000196,2]
[363730686,1748850659613,-151.0,0.000196,2]
[363730687,1748850659622,-283.57053,0.000196,2]
[363730688,1748850659631,-2206.40104,0.000196,2]
[363730689,1748850659640,-2206.40104,0.000196,2]
[363730690,1748850659651,-693.349142,0.000196,2]
[363730691,1748850659660,-151.0,0.000196,2]
[363730692,1748850659669,-693.349142,0.000196,2]
[363730693,1748850659679,-2000.0,0.000196,7]
[363730694,1748850659689,-989.62983762,0.000196,2]
[363730695,1748850659698,-300.0,0.00019606,2]
[363730696,1748850659708,-500.0,0.00019616,2]
[363730697,1748850659717,-500.0,0.00019616,2]
[363730698,1748850659727,-460.0,0.00019616,2]
[363730699,1748850659736,-2458.0,0.00019616,2]
[363730700,1748850659746,-500.0,0.00019616,2]
[363730701,1748850659755,-231.32878229,0.00019616,2]
[363730702,1748850659764,-18318.18474695,0.00019622,2]
[363730703,1748850659773,-2087.22818797,0.00019626,2]
[363730704,1748850659782,-13696.1866928,0.00019626,2]
[363730705,1748850659792,-295.87500137,0.00019626,2]
[363730706,1748850659801,-163.10478396,0.00019626,2]
[363730707,1748850659811,-500.0,0.00019644,2]
[363730708,1748850659821,-500.0,0.00019644,2]
[363730709,1748850659830,-460.0,0.00019644,2]
[363730710,1748850659840,-2458.0,0.00019644,2]
[363730711,1748850659849,-500.0,0.00019644,2]
[363730712,1748850659860,-160.79232204,0.0001965,2]
[363730713,1748850659869,-706.31711131,0.0001965,2]
[363730714,1748850659879,-663.8736,0.00019656,2]
[363730715,1748850659888,-663.8736,0.00019656,2]
[363730716,1748850659898,-440.299628,0.00019656,2]
[363730717,1748850659907,-440.299628,0.00019656,2]
[363730718,1748850659917,-151.0,0.00019656,2]
[363730719,1748850659926,-500.0,0.00019671,2]
[363730720,1748850659936,-446.94283372,0.00019671,2]
[363730721,1748850659945,-460.0,0.00019671,2]
[363730722,1748850659955,-2458.0,0.00019671,2]
[363730723,1748850659965,-500.0,0.00019671,2]
[363730724,1748850659975,-500.0,0.00019699,2]
[363730725,1748850659984,-460.0,0.00019699,2]
[363730726,1748850659994,-2458.0,0.00019699,2]
[363730727,1748850660004,-500.0,0.00019699,2]
[363730728,1748850660013,-514.27,0.00019699,2]
[363730729,1748850660023,-728.8,0.00019699,2]
[363730730,1748850660032,-1100.0,0.000197,2]
[363730731,1748850660042,-151.0,0.000197,2]
[363730732,1748850660053,-151.0,0.000197,2]
[363730733,1748850660063,-151.0,0.000197,2]
[363730734,1748850660073,-312.071918,0.000197,2]
[363730735,1748850660083,-312.071918,0.000197,2]
[363730736,1748850660093,-151.0,0.000197,2]
[363730737,1748850660102,-151.0,0.000197,2]
[363730738,1748850660112,-151.0,0.000197,2]
[363730739,1748850660122,-156.176086,0.000197,2]
[363730740,1748850660132,-151.0,0.000197,2]
[363730741,1748850660142,-151.0,0.000197,2]
[363730742,1748850660151,-151.0,0.000197,2]
[363730743,1748850660165,-151.0,0.000197,2]
[363730744,1748850660175,-151.0,0.000197,2]
[363730745,1748850660184,-151.0,0.000197,2]
[363730746,1748850660194,-151.0,0.000197,2]
[363730747,1748850660205,-151.0,0.000197,2]
[363730748,1748850660215,-151.0,0.000197,2]
[363730749,1748850660226,-2206.40104,0.000197,2]
[363730750,1748850660239,-2206.40104,0.000197,2]
[363730751,1748850660250,-693.349142,0.000197,2]
[363730752,1748850660259,-151.0,0.000197,2]
[363730753,1748850660270,-693.349142,0.000197,2]
[363730754,1748850660280,-2000.0,0.000197,7]
[363730755,1748850660289,-3371.378883,0.000197,2]
[363730756,1748850660298,-3371.378883,0.000197,2]
[363730757,1748850660308,-1000.0,0.000197,2]
[363730758,1748850660319,-151.0,0.000197,2]
[363730759,1748850660329,-81885.12,0.000197,2]
[363730760,1748850660338,-154.38372,0.000197,2]
[363730761,1748850660348,-150.0,0.00019707,2]
[363730762,1748850660358,-150.0,0.00019709,2]
[363730763,1748850660368,-150.0,0.00019714,2]
[363730764,1748850660377,-150.0,0.00019714,2]
[363730765,1748850660386,-151.0,0.00019714,2]
[363730766,1748850660395,-18318.18474695,0.00019715,2]
[363730767,1748850660405,-150.0,0.00019717,2]
[363730768,1748850660415,-13696.1866928,0.00019717,2]
[363730769,1748850660425,-295.87500137,0.00019717,2]
[363730770,1748850660434,-150.0,0.00019718,2]
[363730771,1748850660443,-150.0,0.00019719,2]
[363730772,1748850660453,-150.0,0.00019721,2]
[363730773,1748850660463,-150.0,0.00019722,2]
[363730774,1748850660473,-451.81530465,0.00019726,2]
[363730775,1748850660482,-410378.58991773,0.00019726,2]
[363730776,1748850661078,-11698.94607332,0.00019726,2]
[363730777,1748850661333,-483.89494,0.00019001,2]
[363730778,1748850661343,-483.89494,0.00019001,2]
[363730779,1748850661352,-275.41014,0.00019178,2]
[363730780,1748850661818,-151.0,0.00019164,2]
[363730781,1748850661827,-144.58986,0.00019178,2]
[363730782,1748850661837,-335.25889287,0.00019178,2]
[363730783,1748850661847,-420.0,0.00019315,2]
[363730784,1748850661857,-420.0,0.00019452,2]
[363730785,1748850661867,-189.79476928,0.00019462,2]
[363730786,1748850661879,-47.69873648,0.00019462,2]
[363730787,1748850661889,-52234.96891623,0.00019726,2]
[363730788,1748850661900,-3433.8424506,0.00019726,2]
[363730789,1748850663535,-55316.24327944,0.00019726,2]
[363730790,1748850667081,500.0,0.00010959,30]
[363730791,1748850667642,500.0,0.00019178,30]
[363730792,1748850667681,500.0,0.00021918,30]
[363730793,1748850667728,500.0,0.00010959,30]
[363730794,1748850667764,370.83666111,0.00019178,30]
[363730795,1748850667799,500.0,0.00021918,30]
[363730796,1748850667978,500.0,0.00010959,30]
[363730797,1748850668440,500.0,0.00010959,30]
[363730798,1748850668747,500.0,0.00021918,30]
[363730799,1748850668901,500.0,0.00010959,30]
[363730800,1748850669203,500.0,0.00021918,30]
[363730801,1748850669376,500.0,0.00010959,30]
[363730802,1748850670165,500.0,0.00021918,30]
[363730803,1748850670276,615.93924089,0.00010959,30]
[363730804,1748850670641,500.0,0.00021918,30]
[363730805,1748850671165,500.0,0.00021918,30]
[363730806,1748850671554,500.0,0.00021918,30]
[363730807,1748850672038,157.91722518,0.00021918,30]
[363730809,1748850860484,691.21,0.00018787,2]
[363730810,1748850868149,188.0,0.00024,120]
[363730811,1748850876154,1000.0,0.00018993,2]
[363730812,1748850876411,1000.0,0.00018536,2]
[363730814,1748850895091,150.0,0.000184,2]
[363730815,1748850957091,813.189,0.00023,30]
[363730816,1748850995922,1000.0,0.00018126,2]
[363730817,1748851056424,1000.0,0.00023,30]
[363730818,1748851169552,275.31,0.00013699,2]
[363730820,1748851184165,1000.0,0.00018428,2]
[363730826,1748851398344,1010.91780858,0.00018887,2]
[363730827,1748851400937,437.96,0.0001643,2]
[363730828,1748851401152,437.96,0.00018694,2]
[363730831,1748851531585,188.8,0.00018388,2]
[363730835,1748851832274,-401.23857953,0.000191,6]
[363730836,1748851832329,-198.76142047,0.000191,6]
[363730837,1748851832339,-400.0,0.00019105,2]
[363730838,1748851832348,-400.0,0.00019114,2]
[363730839,1748851832357,-400.0,0.00019127,2]
[363730840,1748851832367,-300.0,0.00019165,2]
[363730841,1748851832376,-1200.0,0.00019165,2]
[363730842,1748851832386,-151.0,0.00019166,2]
[363730843,1748851832395,-151.0,0.00019166,2]
[363730844,1748851832405,-300.0,0.00019166,2]
[363730845,1748851832415,-300.0,0.00019166,2]
[363730846,1748851832426,-400.0,0.00019166,2]
[363730847,1748851832436,-207.4,0.00019166,2]
[363730848,1748851832446,-300.0,0.00019177,2]
[363730850,1748851832456,-300.0,0.00019177,2]
[363730851,1748851832466,-420.0,0.00019178,2]
[363730852,1748851832476,-420.0,0.00019178,2]
[363730853,1748851832486,-420.0,0.00019178,2]
[363730854,1748851832495,-420.0,0.00019178,2]
[363730855,1748851832504,-436.41680096,0.00019178,2]
[363730856,1748851832513,-6.19604847,0.00019178,2]
[363730857,1748851832525,-413.80395153,0.00019178,2]
[363730858,1748851832536,-420.0,0.00019178,2]
[363730859,1748851832545,-207.02764356,0.00019178,2]
[363730860,1748851832561,-212.97235644,0.00019178,2]
[363730861,1748851832570,-619.92768327,0.00019178,2]
[363731000,1748851838083,-420.0,0.00019178,2]
[363731001,1748851838092,-420.0,0.00019178,2]
[363731002,1748851838102,-420.0,0.00019178,2]
[363731003,1748851838111,-420.0,0.00019178,2]
[363731004,1748851838121,-420.0,0.00019178,2]
[363731005,1748851838130,-420.0,0.00019178,2]
[363731006,1748851838140,-427.57,0.00019178,2]
[363731007,1748851838149,-420.0,0.00019178,2]
[363731008,1748851838158,-420.0,0.00019178,2]
[363731009,1748851838168,-582.72,0.00019178,2]
[363731010,1748851838177,-420.0,0.00019178,2]
[363731011,1748851838187,-420.0,0.00019178,2]
[363731012,1748851838197,-420.0,0.00019178,2]
[363731013,1748851838207,-420.0,0.00019178,2]
[363731014,1748851838216,-439.35746051,0.00019178,2]
[363731015,1748851838226,-420.0,0.00019178,2]
[363731016,1748851838235,-475.75,0.00019178,2]
[363731017,1748851838244,-420.0,0.00019178,2]
[363731018,1748851838255,-420.0,0.00019178,2]
[363731019,1748851838264,-420.0,0.00019178,2]
[363731020,1748851838274,-420.0,0.00019178,2]
[363731021,1748851838283,-161.53372081,0.00019178,2]
[363731022,1748851838292,-420.0,0.00019178,2]
[363731023,1748851838302,-44.35749931,0.00019178,2]
[363731024,1748851838322,-375.64250069,0.00019178,2]
[363731025,1748851838332,-224.35749931,0.00019178,2]
[363731026,1748851838343,-195.64250069,0.00019178,2]
[363731027,1748851838353,-323.79571362,0.00019178,2]
[363731028,1748851838395,-16.55613278,0.00019178,2]
[363731029,1748851838404,-300.19282232,0.00019178,2]
[363731030,1748851838419,-119.80717768,0.00019178,2]
[363731031,1748851838428,-420.0,0.00019178,2]
[363731032,1748851838437,-332.38338259,0.00019178,2]
[363731033,1748851838511,-87.61661741,0.00019178,2]
[363731034,1748851838521,-365.02338259,0.00019178,2]
[363731186,1748851840315,-54.97661741,0.00019178,2]
[363731188,1748851840326,-420.0,0.00019178,2]
[363731190,1748851840336,-420.0,0.00019178,2]
[363731192,1748851840346,-420.0,0.00019178,2]
[363731194,1748851840355,-420.0,0.00019178,2]
[363731196,1748851840365,-420.0,0.00019178,2]
[363731198,1748851840375,-420.0,0.00019178,2]
[363731200,1748851840386,-420.0,0.00019178,2]
[363731202,1748851840395,-420.0,0.00019178,2]
[363731204,1748851840405,-420.0,0.00019178,2]
[363731206,1748851840415,-207.23389439,0.00019178,2]
[363731208,1748851840425,-420.0,0.00019178,2]
[363731210,1748851840435,-344.28172624,0.00019178,2]
[363731212,1748851840445,-420.0,0.00019178,2]
[363731214,1748851840455,-420.0,0.00019178,2]
[363731216,1748851840465,-197.49601461,0.00019178,2]
[363731218,1748851840474,-420.0,0.00019178,2]
[363731220,1748851840484,-420.0,0.00019178,2]
[363731222,1748851840493,-420.0,0.00019178,2]
[363731224,1748851840503,-392.40322113,0.00019178,2]
[363731226,1748851840513,-420.0,0.00019178,2]
[363731228,1748851840522,-420.0,0.00019178,2]
[363731230,1748851840531,-420.0,0.00019178,2]
[363731232,1748851840541,-421.1,0.00019178,2]
[363731234,1748851840550,-1482.96,0.00019178,2]
[363731236,1748851840559,-420.0,0.00019178,2]
[363731238,1748851840568,-766.88,0.00019178,2]
[363731240,1748851840577,-420.0,0.00019178,2]
[363731242,1748851840588,-492.3,0.00019178,2]
[363731244,1748851840597,-420.0,0.00019178,2]
[363731246,1748851840607,-420.0,0.00019178,2]
[363731248,1748851840617,-367.61038762,0.00019178,2]
[363731250,1748851840626,-601.92,0.00019178,2]
[363731251,1748851840636,-453.38,0.00019178,2]
[363731252,1748851840645,-305.18563026,0.00019178,2]
[363731253,1748851840654,-744.05,0.00019178,2]
[363731254,1748851840662,-192.49532648,0.00019178,2]
[363731255,1748851840671,-1397.73,0.00019178,2]
[363731256,1748851840680,-223.35352204,0.00019178,2]
[363731257,1748851840688,-420.0,0.00019178,2]
[363731258,1748851840696,-420.0,0.00019178,2]
[363731259,1748851840705,-571.42,0.00019178,2]
[363731260,1748851840713,-420.0,0.00019178,2]
[363731261,1748851840722,-420.0,0.00019178,2]
[363731262,1748851840732,-508.96,0.00019178,2]
[363731263,1748851840741,-420.0,0.00019178,2]
[363731264,1748851840751,-433.82,0.00019178,2]
[363731265,1748851840761,-226.74980386,0.00019178,2]
[363731266,1748851840770,-420.0,0.00019178,2]
[363731267,1748851840779,-420.0,0.00019178,2]
[363731268,1748851840788,-420.0,0.00019178,2]
[363731269,1748851840803,-420.0,0.00019178,2]
[363731270,1748851840812,-420.0,0.00019178,2]
[363731271,1748851840822,-1879.38,0.00019178,2]
[363731272,1748851840831,-420.0,0.00019178,2]
[363731273,1748851840841,-420.0,0.00019178,2]
[363731274,1748851840850,-2175.84,0.00019178,2]
[363731275,1748851840859,-316.48047882,0.00019178,2]
[363731276,1748851840868,-420.0,0.00019178,2]
[363731277,1748851840879,-420.0,0.00019178,2]
[363731278,1748851840888,-420.0,0.00019178,2]
[363731279,1748851840898,-2379.6,0.00019178,2]
[363731280,1748851840908,-420.0,0.00019178,2]
[363731281,1748851840917,-1668.89,0.00019178,2]
[363731282,1748851840927,-889.35,0.00019178,2]
[363731283,1748851840936,-420.0,0.00019178,2]
[363731284,1748851840946,-420.0,0.00019178,2]
[363731285,1748851840956,-448.40220564,0.00019178,2]
[363731286,1748851840966,-895.18,0.00019178,2]
[363731287,1748851840975,-420.0,0.00019178,2]
[363731288,1748851840984,-420.0,0.00019178,2]
[363731289,1748851840993,-507.05,0.00019178,2]
[363731290,1748851841003,-959.29,0.00019178,2]
[363731291,1748851841012,-420.0,0.00019178,2]
[363731292,1748851841021,-420.0,0.00019178,2]
[363731293,1748851841030,-420.0,0.00019178,2]
[363731294,1748851841039,-159.23089909,0.00019178,2]
[363731295,1748851841049,-691.35,0.00019178,2]
[363731296,1748851841058,-1046.99,0.00019178,2]
[363731297,1748851841067,-6146.5,0.00019178,2]
[363731298,1748851841076,-420.0,0.00019178,2]
[363731299,1748851841085,-420.0,0.00019178,2]
[363731300,1748851841095,-351.76,0.00019178,2]
[363731301,1748851841105,-420.0,0.00019178,2]
[363731302,1748851841117,-420.0,0.00019178,2]
[363731303,1748851841126,-420.0,0.00019178,2]
[363731304,1748851841135,-420.0,0.00019178,2]
[363731305,1748851841144,-420.0,0.00019178,2]
[363731306,1748851841154,-420.0,0.00019178,2]
[363731307,1748851841163,-434.99,0.00019178,2]
[363731308,1748851841173,-420.0,0.00019178,2]
[363731309,1748851841182,-420.0,0.00019178,2]
[363731310,1748851841192,-420.0,0.00019178,2]
[363731311,1748851841202,-420.0,0.00019178,2]
[363731312,1748851841211,-249.98,0.00019178,2]
[363731313,1748851841220,-420.0,0.00019178,2]
[363731314,1748851841229,-420.0,0.00019178,2]
[363731315,1748851841239,-420.0,0.00019178,2]
[363731316,1748851841248,-420.0,0.00019178,2]
[363731317,1748851841258,-420.0,0.00019178,2]
[363731318,1748851841267,-420.0,0.00019178,2]
[363731319,1748851841277,-209.00208029,0.00019178,2]
[363731320,1748851841286,-653.24,0.00019178,2]
[363731321,1748851841296,-420.0,0.00019178,2]
[363731322,1748851841306,-420.0,0.00019178,2]
[363731323,1748851841315,-420.0,0.00019178,2]
[363731324,1748851841325,-420.0,0.00019178,2]
[363731325,1748851841334,-420.0,0.00019178,2]
[363731326,1748851841343,-420.0,0.00019178,2]
[363731327,1748851841353,-893.19,0.00019178,2]
[363731328,1748851841363,-516.29,0.00019178,2]
[363731329,1748851841373,-420.0,0.00019178,2]
[363731330,1748851841383,-420.0,0.00019178,2]
[363731331,1748851841392,-420.0,0.00019178,2]
[363731332,1748851841402,-869.93,0.00019178,2]
[363731333,1748851841411,-624.02,0.00019178,2]
[363731334,1748851841420,-520.90136965,0.00019178,2]
[363731335,1748851841430,-695.55,0.00019178,2]
[363731336,1748851841439,-167.51,0.00019178,2]
[363731337,1748851841450,-420.0,0.00019178,2]
[363731338,1748851841460,-420.0,0.00019178,2]
[363731339,1748851841469,-420.0,0.00019178,2]
[363731340,1748851841479,-420.0,0.00019178,2]
[363731341,1748851841489,-1095.06,0.00019178,2]
[363731342,1748851841498,-420.0,0.00019178,2]
[363731343,1748851841508,-420.0,0.00019178,2]
[363731344,1748851841517,-420.0,0.00019178,2]
[363731345,1748851841527,-420.0,0.00019178,2]
[363731346,1748851841536,-420.0,0.00019178,2]
[363731347,1748851841546,-420.0,0.00019178,2]
[363731348,1748851841555,-420.0,0.00019178,2]
[363731349,1748851841565,-420.0,0.00019178,2]
[363731350,1748851841575,-420.0,0.00019178,2]
[363731351,1748851841584,-440.61,0.00019178,2]
[363731352,1748851841594,-420.0,0.00019178,2]
[363731353,1748851841604,-420.0,0.00019178,2]
[363731354,1748851841613,-420.0,0.00019178,2]
[363731355,1748851841623,-420.0,0.00019178,2]
[363731356,1748851841633,-3649.37,0.00019178,2]
[363731357,1748851841643,-1718.55,0.00019178,2]
[363731358,1748851841653,-2635.9,0.00019178,2]
[363731359,1748851841662,-420.0,0.00019178,2]
[363731360,1748851841672,-420.0,0.00019178,2]
[363731361,1748851841682,-276.38836832,0.00019178,2]
[363731362,1748851841692,-420.0,0.00019178,2]
[363731363,1748851841704,-420.0,0.00019178,2]
[363731364,1748851841715,-616.4,0.00019178,2]
[363731365,1748851841724,-420.0,0.00019178,2]
[363731366,1748851841733,-420.0,0.00019178,2]
[363731367,1748851841743,-420.0,0.00019178,2]
[363731368,1748851841753,-420.0,0.00019178,2]
[363731369,1748851841762,-420.0,0.00019178,2]
[363731370,1748851841772,-420.0,0.00019178,2]
[363731371,1748851841782,-420.0,0.00019178,2]
[363731372,1748851841792,-420.0,0.00019178,2]
[363731373,1748851841806,-420.0,0.00019178,2]
[363731374,1748851841816,-1552.61,0.00019178,2]
[363731375,1748851841825,-420.0,0.00019178,2]
[363731376,1748851841834,-420.0,0.00019178,2]
[363731377,1748851841844,-420.0,0.00019178,2]
[363731378,1748851841854,-10967.4,0.00019178,2]
[363731379,1748851841863,-420.0,0.00019178,2]
[363731380,1748851841873,-420.0,0.00019178,2]
[363731381,1748851841886,-420.0,0.00019178,2]
[363731382,1748851841896,-420.0,0.00019178,2]
[363731383,1748851841905,-420.0,0.00019178,2]
[363731384,1748851841915,-251.55813342,0.00019178,2]
[363731385,1748851841924,-798.41,0.00019178,2]
[363731386,1748851842138,-420.0,0.00019178,2]
[363731387,1748851842148,-420.0,0.00019178,2]
[363731388,1748851842158,-420.0,0.00019178,2]
[363731389,1748851842167,-420.0,0.00019178,2]
[363731390,1748851842177,-420.0,0.00019178,2]
[363731391,1748851842186,-420.0,0.00019178,2]
[363731392,1748851842196,-420.0,0.00019178,2]
[363731393,1748851842207,-420.0,0.00019178,2]
[363731394,1748851842216,-2017.97,0.00019178,2]
[363731395,1748851842226,-420.0,0.00019178,2]
[363731396,1748851842235,-420.0,0.00019178,2]
[363731397,1748851842246,-420.0,0.00019178,2]
[363731398,1748851842255,-420.0,0.00019178,2]
[363731399,1748851842265,-427.23,0.00019178,2]
[363731400,1748851842275,-548.87676364,0.00019178,2]
[363731401,1748851842285,-420.0,0.00019178,2]
[363731402,1748851842294,-426.03,0.00019178,2]
[363731403,1748851842304,-420.0,0.00019178,2]
[363731404,1748851842313,-420.0,0.00019178,2]
[363731405,1748851842323,-420.0,0.00019178,2]
[363731406,1748851842332,-420.0,0.00019178,2]
[363731407,1748851842341,-2125.91,0.00019178,2]
[363731408,1748851842351,-866.32,0.00019178,2]
[363731409,1748851842361,-420.0,0.00019178,2]
[363731410,1748851842370,-420.0,0.00019178,2]
[363731411,1748851842380,-420.0,0.00019178,2]
[363731412,1748851842390,-642.79,0.00019178,2]
[363731413,1748851842399,-1155.76,0.00019178,2]
[363731414,1748851842409,-420.0,0.00019178,2]
[363731415,1748851842418,-420.0,0.00019178,2]
[363731416,1748851842431,-420.0,0.00019178,2]
[363731417,1748851842441,-420.0,0.00019178,2]
[363731418,1748851842453,-420.0,0.00019178,2]
[363731419,1748851842462,-168.12,0.00019178,2]
[363731420,1748851842472,-1200.0,0.000192,7]
[363731421,1748851842482,-151.0,0.0001921,2]
[363731422,1748851842492,-151.0,0.0001921,2]
[363731423,1748851842502,-151.0,0.0001921,2]
[363731424,1748851842512,-151.0,0.0001921,2]
[363731425,1748851842521,-7561.86930386,0.00019215,2]
[363731426,1748851842531,-558.14602101,0.00019215,2]
[363731427,1748851842540,-163.10478396,0.00019215,2]
[363731428,1748851842550,-7561.86930377,0.00019291,2]
[363731429,1748851842560,-1900.0,0.000193,7]
[363731430,1748851842570,-500.0,0.00019314,2]
[363731431,1748851842580,-500.0,0.00019314,2]
[363731432,1748851842589,-504.91878749,0.00019314,2]
[363731433,1748851842599,-500.0,0.00019314,2]
[363731434,1748851842608,-500.0,0.00019314,2]
[363731435,1748851842618,-500.0,0.00019314,2]
[363731436,1748851842627,-508.87334993,0.00019314,2]
[363731437,1748851842637,-701.07,0.00019314,2]
[363731438,1748851842647,-500.0,0.00019314,2]
[363731439,1748851842656,-500.0,0.00019314,2]
[363731440,1748851842666,-500.0,0.00019314,2]
[363731441,1748851842676,-226.914213,0.00019315,2]
[363731442,1748851842685,-226.914213,0.00019315,2]
[363731443,1748851842695,-226.914213,0.00019315,2]
[363731444,1748851842707,-226.914213,0.00019315,2]
[363731445,1748851842718,-242.830981,0.00019315,2]
[363731446,1748851842728,-242.830981,0.00019315,2]
[363731447,1748851842738,-242.830981,0.00019315,2]
[363731448,1748851842748,-242.830981,0.00019315,2]
[363731449,1748851842758,-154.915973,0.00019315,2]
[363731450,1748851842768,-154.915973,0.00019315,2]
[363731451,1748851842778,-154.915973,0.00019315,2]
[363731452,1748851842788,-154.915973,0.00019315,2]
[363731453,1748851842800,-151.0,0.00019315,2]
[363731454,1748851842810,-151.0,0.00019315,2]
[363731455,1748851842820,-420.0,0.00019315,2]
[363731456,1748851842830,-151.0,0.00019315,2]
[363731457,1748851842841,-151.0,0.00019315,2]
[363731458,1748851842851,-151.0,0.00019315,2]
[363731459,1748851842860,-151.0,0.00019315,2]
[363731460,1748851842870,-420.0,0.00019315,2]
[363731461,1748851842881,-420.0,0.00019315,2]
[363731462,1748851842890,-420.0,0.00019315,2]
[363731463,1748851842900,-420.0,0.00019315,2]
[363731464,1748851842910,-420.0,0.00019315,2]
[363731465,1748851842920,-420.0,0.00019315,2]
[363731466,1748851842929,-420.0,0.00019315,2]
[363731468,1748851842939,-420.0,0.00019315,2]
[363731470,1748851842949,-420.0,0.00019315,2]
[363731472,1748851842962,-420.0,0.00019315,2]
[363731473,1748851842972,-420.0,0.00019315,2]
[363731474,1748851842981,-520.75,0.00019315,2]
[363731475,1748851842991,-420.0,0.00019315,2]
[363731476,1748851843000,-582.72,0.00019315,2]
[363731477,1748851843009,-420.0,0.00019315,2]
[363731478,1748851843019,-420.0,0.00019315,2]
[363731479,1748851843029,-420.0,0.00019315,2]
[363731480,1748851843039,-420.0,0.00019315,2]
[363731482,1748851843049,-420.0,0.00019315,2]
[363731483,1748851843059,-420.0,0.00019315,2]
[363731484,1748851843069,-420.0,0.00019315,2]